Cogmind - Beta 13 @@@ ROGUE MODE // 2024.04.22 @ 18:12:38 Player: Red_Zig Result: Destroyed by Y-54 Guardian with Gatling Laser Performance ------------- Evolutions (0) 0 Regions Visited (3) 600 Robots Destroyed (30) 150 Value Destroyed (880) 880 Prototype IDs (10) 200 Alien Tech Used (0) 0 Bonus (0) 0 TOTAL SCORE: 1830 Bonus ------- None Cogmind --------- Core Integrity 0/250 Matter 128/300 Energy 250/250 System Corruption 0% Temperature Cool (78) Movement Rolling (130) Ox2 Location -7/Recycling Parts ------- > --- POWER (1) -------- Ion Engine > --- PROPULSION (2) --- Compact Wheel > --- UTILITY (2) ------ Large Storage Unit Targeting Computer > --- WEAPON (2) ------- Subdweller Machine Gun Slug Cannon > --- INVENTORY (15) --- Scrap Engine Medium Armor Plating Medium Armor Plating Medium Armor Plating Medium Armor Plating Scrap Shield Rainbow Chip Riot Gun Heavy Riot Gun Subdweller Laser Subdweller Machine Gun Grenade Launcher Subdweller Shrapnel Launcher Peak State ------------ > --- POWER ------------ (None) > --- PROPULSION ------- Spiked Treads Compact Wheel > --- UTILITY ---------- Large Storage Unit Targeting Computer > --- WEAPON ----------- Subdweller Machine Gun Slug Cannon > --- INVENTORY -------- Aluminum Leg Aluminum Leg Medium Armor Plating Medium Armor Plating Medium Armor Plating Medium Armor Plating Scrap Shield Rainbow Chip Riot Gun Heavy Riot Gun Subdweller Laser Subdweller Machine Gun Grenade Launcher Subdweller Shrapnel Launcher [Rating: 15] Favorites ----------- Power Ion Engine Engine Ion Engine Propulsion Light Treads Treads Light Treads Leg Aluminum Leg Wheel Compact Wheel Utility Large Storage Unit Storage Large Storage Unit Processor Targeting Computer Weapon Light Assault Rifle Energy Gun Subdweller Laser Ballistic Gun Light Assault Rifle Ballistic Cannon Slug Cannon Launcher Mini Grenade Launcher Build | -11 -10 -10 -7 ------- Run | Yrd Mat Sub Rec Slots Evolved . | . . . . Power . | . . . . Propulsion . | . . . . Utility . | . . . . Weapon . | . . . . Parts Attached 33 | 6 3 24 . Power 5 | 1 . 4 . Engine 5 | 1 . 4 . Core . | . . . . Reactor . | . . . . Propulsion 8 | 2 1 5 . Treads 5 | 2 1 2 . Leg 1 | . . 1 . Wheel 2 | . . 2 . Hover . | . . . . Flight . | . . . . Utility 3 | 1 2 . . Device . | . . . . Storage 2 | 1 1 . . Processor 1 | . 1 . . Hackware . | . . . . Protection . | . . . . Artifact . | . . . . Weapon 17 | 2 . 15 . Energy Gun 3 | . . 3 . Energy Cannon . | . . . . Ballistic Gun 10 | 2 . 8 . Ballistic Cannon 1 | . . 1 . Launcher 3 | . . 3 . Special Weapon . | . . . . Impact Weapon . | . . . . Slashing Weapon . | . . . . Piercing Weapon . | . . . . Special Melee Weapon . | . . . . Unidentified Prototypes . | . . . . Parts Lost 8 | . . 8 . Power 2 | . . 2 . Propulsion 4 | . . 4 . Utility . | . . . . Weapon 2 | . . 2 . Highest Loss Streak 3 | . . 3 . To Critical Strikes . | . . . . Average Slot Usage (%) 92 | . 95 91 85 Engine 10 | . 14 9 14 Treads 21 | . 28 20 . Wheel 2 | . . 3 14 Storage 14 | . 14 14 14 Processor 12 | . 9 14 14 Energy Gun 6 | . . 9 . Ballistic Gun 17 | . 28 13 14 Ballistic Cannon 2 | . . 2 14 Launcher 1 | . . 2 . Naked Turns . | . . . . Heaviest Build 36 | 13 28 36 36 Greatest Support 40 | 40 40 40 16 Greatest Overweight (x) 2 | . . 2 2 Average Overweight (x) . | . . . 2 Largest Inventory Capacity 15 | 8 15 15 15 Average Capacity 14 | 6 14 15 15 Most Carried 15 | 6 15 15 15 Average Carried 13 | 3 10 14 14 Final Capacity 15 | 8 15 15 15 Final Carried 15 | 6 15 15 15 Class Distribution -------------------- 100% | Mutant Dominant Class ---------------- Mutant | -10/Materials Mutant | -10/Subcaves Mutant | -7/Recycling Resources | -11 -10 -10 -7 ----------- Run | Yrd Mat Sub Rec Matter Collected 1001 | 150 287 564 . Remotely . | . . . . Salvage Created 1037 | . 445 592 . Parts 67 | . 27 40 . Haulers Intercepted 2 | . 2 . . Recyclers Shooed . | . . . . Parts Field Recycled . | . . . . Retrieved Matter . | . . . . Parts Self-Destructed 21 | . . 21 . Prevented . | . . . . Kills | -11 -10 -10 -7 ------- Run | Yrd Mat Sub Rec Combat Hostiles Destroyed 23 | . 8 15 . Guns 22 | . 8 14 . AOE 1 | . . 1 . Classes Destroyed 10 | . 5 5 . Hauler 2 | . 2 . . Mechanic 1 | . 1 . . Turret 2 | . . 2 . Watcher 2 | . 2 . . Swarmer 5 | . 3 2 . Grunt 5 | . 5 . . Sentry 1 | . . 1 . Artisan 1 | . . 1 . Cobbler 1 | . . 1 . Subdweller 12 | . . 12 . Best Kill Streak 3 | . 3 3 . Combat Bots Only 3 | . 3 3 . Max Kills in Single Turn 1 | . 1 1 . Gunslinging . | . . . . Exploded 1 | . . 1 . Melee . | . . . . Uniques/NPCs Destroyed . | . . . . Combat | -11 -10 -10 -7 -------- Run | Yrd Mat Sub Rec Hostile Shots Fired 199 | . 28 150 21 Missed 71 | . 7 59 5 Damage Taken 1724 | . 221 1387 116 Core 255 | . 35 176 44 Absorbed by Shields . | . . . . Core Remaining (%) 100 | 100 . . . Volleys Fired 138 | . 41 94 3 Largest 2 | . 2 2 2 Hottest 80 | . 40 80 78 Shots Fired 259 | . 82 171 6 Gun 208 | . 82 123 3 Cannon 36 | . . 33 3 Launcher 15 | . . 15 . Special . | . . . . Kinetic 208 | . 82 120 6 Thermal 36 | . . 36 . Explosive 15 | . . 15 . Electromagnetic . | . . . . Robot Hit Streak 31 | . 13 31 5 Robot Miss Streak 6 | . 3 6 1 Penetration Max . | . . . . Secondary Targets 1 | . . 1 . Max Gunslinging Chain 1 | . . 1 . Shots Hit Robots 168 | . 55 108 5 Core Hits 61 | . 22 38 1 Critical Kills 1 | . 1 . . Critical Parts Destroyed 2 | . . 1 1 Critical Strikes 4 | . 1 2 1 Destroy 4 | . 1 2 1 Melee Attacks . | . . . . Impact . | . . . . Slashing . | . . . . Piercing . | . . . . Sneak Attacks . | . . . . Combat Hostiles . | . . . . Follow-up Attacks . | . . . . Damage Inflicted 2598 | . 563 1867 168 Guns 1804 | . 563 1201 40 Cannons 223 | . . 95 128 Explosions 571 | . . 571 . Melee . | . . . . Ramming . | . . . . Kinetic 1521 | . 563 790 168 Thermal 506 | . . 506 . Explosive 571 | . . 571 . Electromagnetic . | . . . . Impact . | . . . . Slashing . | . . . . Piercing . | . . . . Highest Corruption . | . . . . Average Corruption . | . . . . Corruption Purged . | . . . . Corruption Blocked . | . . . . Overload Shots . | . . . . Overflow Damage . | . . . . Projectiles . | . . . . Explosions . | . . . . Melee . | . . . . Knockbacks 1 | . . 1 . Impact . | . . . . Kinetic 1 | . . 1 . Secondary . | . . . . Self-Inflicted Damage 25 | . . 25 . Shots 1 | . . 1 . Rammed . | . . . . Targets Rammed . | . . . . Kicked . | . . . . Crushed . | . . . . Highest Temperature 66 | . 9 6 66 Average Temperature 15 | . 7 6 39 Received Heat Transfer 417 | . 108 273 36 Siege Activations . | . . . . Robots Corrupted . | . . . . Combat Hostiles . | . . . . Parts Fried . | . . . . Impact Corruptions . | . . . . Robots Melted . | . . . . Combat Hostiles . | . . . . Parts Melted 3 | . . 3 . Heat Transferred 800 | . . 800 . Parts Sabotaged . | . . . . Parts Stolen . | . . . . Parts Stripped . | . . . . Power Chain Reactions . | . . . . Alert | -11 -10 -10 -7 ------- Run | Yrd Mat Sub Rec Peak Influence 499 | . 190 . 499 Initial 487 | . . . 487 Average 95 | . 43 . 491 Maximum Alert Level 2 | . . . 2 Low Security (%) 87 | 100 100 . . Level 1 . | . . . . Level 2 12 | . . . 100 Level 3 . | . . . . Level 4 . | . . . . Level 5 . | . . . . High Security . | . . . . Max Security . | . . . . Squads Dispatched 3 | . 3 . . Investigation 2 | . 2 . . Extermination . | . . . . Reinforcement 1 | . 1 . . Assault . | . . . . Garrison . | . . . . Intercept . | . . . . Searches Triggered . | . . . . Construction Impeded . | . . . . Haulers Reinforced . | . . . . Active Scanning Responses . | . . . . Cargo Convoy Interrupts . | . . . . Stealth | -11 -10 -10 -7 --------- Run | Yrd Mat Sub Rec Distress Signals . | . . . . Communications Jammed . | . . . . Distress Signals . | . . . . Times Spotted 65 | . 15 49 1 Peak Tracking Total 4 | . 4 3 1 Tactical Retreats 5 | . 1 4 . Traps | -11 -10 -10 -7 ------- Run | Yrd Mat Sub Rec Traps Triggered 4 | . 2 2 . Indirectly . | . . . . Trap Hack Attempts . | . . . . Triggered . | . . . . Disarmed 6 | . 6 . . Reprogrammed . | . . . . Reused . | . . . . Traps Extracted . | . . . . Installed . | . . . . Triggered . | . . . . Machines | -11 -10 -10 -7 ---------- Run | Yrd Mat Sub Rec Machines Disabled 3 | . . 3 . Max in Single Turn 1 | . . 1 . Machines Repaired . | . . . . Machines Dismantled . | . . . . Machines Sabotaged . | . . . . Overloaded Fab Kills . | . . . . Hacking | -11 -10 -10 -7 --------- Run | Yrd Mat Sub Rec Machines Accessed 10 | . 4 2 4 Terminals 8 | . 4 . 4 Fabricators . | . . . . Repair Stations . | . . . . Recycling Units . | . . . . Scanalyzers . | . . . . Garrison Access . | . . . . Total Hacks 33 | . 17 10 6 Successful 22 | . 10 10 2 Failed 11 | . 7 . 4 Catastrophic 1 | . . . 1 Database Lockouts . | . . . . Manual 23 | . 16 1 6 Terminals 23 | . 17 . 6 Fabricators . | . . . . Repair Stations . | . . . . Recycling Units . | . . . . Scanalyzers . | . . . . Garrison Access . | . . . . Terminal Hacks 11 | . 1 10 . Record 9 | . . 9 . Disarm Traps 1 | . 1 . . Derelict Proto ID Bank 1 | . . 1 . Fabricator Hacks . | . . . . Repair Station Hacks . | . . . . Recycling Unit Hacks . | . . . . Scanalyzer . | . . . . Garrison Access Hacks . | . . . . Unauthorized Hacks 11 | . 9 . 2 Terminals 11 | . 9 . 2 Track 1 | . 1 . . Assimilate 1 | . 1 . . Botnet 6 | . 4 . 2 Disrupt 1 | . 1 . . Operators 2 | . 2 . . Fabricators . | . . . . Repair Stations . | . . . . Recycling Units . | . . . . Scanalyzers . | . . . . Garrison Access . | . . . . Data Cores Recovered . | . . . . Used . | . . . . Hacking Detections 8 | . 4 . 4 Full Trace Events . | . . . . Feedback Events . | . . . . Feedback Blocked . | . . . . Robot Schematics Acquired . | . . . . Robots Built . | . . . . Authchips . | . . . . Time . | . . . . Total Robot Build Rating . | . . . . Part Schematics Acquired . | . . . . Parts Built . | . . . . Authchips . | . . . . Time . | . . . . Total Part Build Rating . | . . . . Parts Repaired . | . . . . Time . | . . . . Parts Recycled . | . . . . Recycled Matter . | . . . . Retrieved Matter . | . . . . Retrieved Components . | . . . . Parts Scanalyzed . | . . . . Part Schematics Acquired . | . . . . Parts Damaged . | . . . . Bothacking | -11 -10 -10 -7 ------------ Run | Yrd Mat Sub Rec Used RIF Installer . | . . . . Robots Hacked . | . . . . Non-combat . | . . . . Combat . | . . . . Robot Hacks Applied . | . . . . Relay Couplers Released . | . . . . Fabnet Peak Effective % . | . . . . Robots Rewired . | . . . . Allies Hacked . | . . . . Hacks Repelled . | . . . . Allies | -11 -10 -10 -7 -------- Run | Yrd Mat Sub Rec Total Allies . | . . . . Largest Group . | . . . . Highest-Rated Group . | . . . . Highest-Rated Ally . | . . . . Total Orders . | . . . . Ally Attacks . | . . . . Total Damage . | . . . . Kills . | . . . . Allies Corrupted . | . . . . Allies Melted . | . . . . Intel | -11 -10 -10 -7 ------- Run | Yrd Mat Sub Rec Robot Analysis Total . | . . . . Derelict Logs Recovered 2 | . . 2 . Drone Launches . | . . . . Drone Recoveries . | . . . . Exploration | -11 -10 -10 -7 ------------- Run | Yrd Mat Sub Rec Turns Passed 5473 | 93 1380 3798 202 Spaces Moved 2600 | 55 470 1927 148 Core 8 | 8 . . . Treads 1716 | 47 470 1199 . Legs 90 | . . 90 . Wheels 786 | . . 638 148 Hover . | . . . . Flight . | . . . . Fastest Speed 50 | 50 160 115 130 Average Speed 159 | 144 160 162 130 Slowest Speed 260 | 160 160 260 130 Overloaded Moves . | . . . . Propulsion Burnouts . | . . . . Robots Hopped . | . . . . Cave-ins Triggered . | . . . . Exploration Rate (%) 54 | 5 81 85 46 Regions Visited 3 Branch Regions 2 Pre-discovered Areas 1 | . . 1 . Known Exits Taken . | . . . . Unknown Exits Taken 3 | 1 1 1 . Scrap Searched 4 | . . 4 . Spaces Dug . | . . . . Terrain Destroyed 122 | . . 122 . Melee . | . . . . Projectile 13 | . . 13 . AOE 109 | . . 109 . Terrain Rammed . | . . . . Walls Destroyed . | . . . . Machines Disabled . | . . . . Actions | -11 -10 -10 -7 --------- Run | Yrd Mat Sub Rec Total 3668 | 66 1023 2425 154 Wait 862 | . 501 361 . Move 2597 | 54 469 1926 148 Hop . | . . . . Pick Up 23 | 6 8 8 1 Fast Attach 14 | 6 2 6 . Attach 5 | . . 5 . Detach . | . . . . Swap 14 | . 1 13 . Drop 15 | . 1 12 2 Fire 138 | . 41 94 3 Melee . | . . . . Ram . | . . . . Kick . | . . . . Crush . | . . . . Escape Stasis . | . . . . Rewire . | . . . . Trap . | . . . . Miscellaneous . | . . . . Route ------- -11/Scrapyard -10/Materials (discovered 5 exits: [*Mat x3] / [*Min] / *Sub) -10/Subcaves (discovered 3 exits: [*Mat x2] / *Rec) -7/Recycling (discovered 1 exit: [*Fac]) History --------- Turn | Location | Event 4 | -11/Scrapyard | Discovered new exit (range 15) 94 | -11/Scrapyard | Entered Materials 307 | -10/Materials | Build established: Mutant 352 | -10/Materials | Discovered new exit (range 14) 474 | -10/Materials | Discovered new exit (range 15) 630 | -10/Materials | Discovered new exit (range 15) 949 | -10/Materials | Discovered new exit (range 16) 1455 | -10/Materials | Discovered new exit (range 5) 1474 | -10/Materials | Entered Subcaves 1734 | -10/Subcaves | Ambushed by Subdweller buried in earth 1752 | -10/Subcaves | Ambushed by Subdweller buried in earth 1788 | -10/Subcaves | Lost 3 parts (1p1n1w) 2831 | -10/Subcaves | Discovered new exit (range 9) 2935 | -10/Subcaves | Visited Clippyterm 3246 | -10/Subcaves | A swath of the cavern ceiling suddenly collapsed 3640 | -10/Subcaves | Learned 2 Materials zone layouts 3695 | -10/Subcaves | Disturbed a concealed Subdweller 3813 | -10/Subcaves | Core integrity fell below 50% 3896 | -10/Subcaves | Shifting Twisted Machinery released Piercing Trap 3897 | -10/Subcaves | Learned location of Mines (-9) 3907 | -10/Subcaves | Shifting Twisted Machinery released Hvy. Riot Gun 4445 | -10/Subcaves | Shifting Twisted Machinery released Flamer 4529 | -10/Subcaves | Visited 4L-MR0's lab 4553 | -10/Subcaves | Found Rainbow Chip 4693 | -10/Subcaves | A swath of the cavern ceiling suddenly collapsed 5160 | -10/Subcaves | Discovered new exit (range 14) 5186 | -10/Subcaves | Core integrity fell below 20% 5218 | -10/Subcaves | Discovered new exit (range 6) 5272 | -10/Subcaves | Entered Recycling 5276 | -7/Recycling | Found Scrap Engine 5412 | -7/Recycling | Discovered new exit (range 5) 5474 | -7/Recycling | Destroyed by Y-54 Guardian with Gatling Laser Last Messages --------------- 05287_ Current location identified: Recycling 05295_ R-06 Scavenger collects Aluminum Leg. 05342_ Connecting with Terminal... >>Trojan(Botnet) Trojan loaded successfully. Testing... Terminal linked with 0 systems. Awaiting botnet instructions. 05394_ Connecting with Terminal... >>Trojan(Botnet) Trojan loaded successfully. Testing... Terminal linked with 1 system. Awaiting botnet instructions. 05406_ Connecting with Terminal... 05412_ EXIT=FOUND 05468_ Y-54 Guardian springs to life. 05470_ Y-54 Guardian suffers critical hit (Destroy). 05470_ Destroyed Lgt. Treads. Map ----- +----------------------------------------------------+ | ???????????????????????????????????????????????? | | ???????????????????????????????????????????????? | | ???????????????????????????????????????????????? | | ???????????????????????????????????????????????? | | ???????????????????????????????????????????????? | | ???????????????????????????????????????????????? | | ???????????????????????????????????????????????? | | ???????????????????????????????????????????????? | | ???????????????????????????????????????????????? | | ???????????????????????????????????????????????? | | ???????????????????????????????????????????????? | | ???????????????????????????? !?????????????????? | | ????????????????????????#+##/#?????????????????? | | ????????????????????????# u#?????????????????? | | ????????????????????????# #?????????????????? | | ????????????????????????# ###???????????????? | | ????????????????????????# # #########???????? | | ????????????????????????# # #???????? | | ????????????????????????+ # #???????? | | ????????????????????????# # #???????? | | ????????????????????????# # #???????? | | ????????????????????????+ + #???????? | | ????????????????????????# # #???????? | | ????????????????????????# % # #???????? | | ???????????????????????## # #???????? | | ???????????????????????#Y@ ##+##+#####???????? | | ????????????????????##### #???????????? | | ??????????????????? #???????????? | | ??????????????????? #???????????? | | ??????????????????? #???????????? | | ??????????????????? r #???????????? | | ????????????? ??????##+########+##+########????? | | ????##???"""# #??????? ??????# #????? | | ???## ###"Y"# #?????? /??????# #????? | | ?? #?????? ???????# #????? | | ? #????? ???????# #????? | | ? #????? ????????# """ #????? | | ?? #???? ????????# """ #????? | | ??? #???? ?????????#"" """ #????? | | ???? #??????????????#"" #????? | | ????? #??????????????#"T """ #????? | | ?????? #??????????????#"" """ #????? | | ???????# +??????????????#"" """ #????? | | ???????# #??????????????# #????? | | ######## #???###+##?????#######+######????? | | #???# ########## #???????? | | ## #???# #???????? | | ?# ########## #???? #???????? | | ## #????????# #???? #???????? | | ## ######???# #???? ########## #???????? | +----------------------------------------------------+ Best States ------------- Heat Dissipation 25 Energy Generation 15 Energy Capacity 250 Matter Stores 300 Matter Capacity 300 Sight Range 16 Terrain Scan Density 10 Evasion (%) 40 Targeting Accuracy 5 Recoil Reduction 2 Item Schematics ----------------- None Robot Schematics ------------------ None Fabricated ------------ Nothing Alien Tech Used ----------------- None Achievements -------------- None Challenges ------------ None Game ------ Seed LongswordRocketSink Manual? 0 Play Time 00:31:58 Cumulative 46.0 hours Start 2024.04.22 @ 17:40:56 End 2024.04.22 @ 18:12:38 Sessions 1 Manual Loads 0 Difficulty Rogue Special Mode None Game No. 42 Rogue 30 Adventurer 12 Explorer 0 Win Type - Total 0 Types 0/0/0/0/0/0/0/0/0 Lore% 24 Gallery% 38 Achievement% 31 Wizard Run 0 Options --------- Layout 2 ASCII 0 Keyboard 0 Movement Numpad Keybinds 0 Fullscreen 1 Font 24/Smallcaps Map View 50x44 Zoom Use 23% Tactical HUD 1 Map Filters NONE Filters NONE Steam 1 RUN: 64869c9e-dbb5-4d9e-9069-aa6f1db5f834